Cogmind - Beta 10.2 @@@ ROGUE MODE // 2021.08.16 @ 23:02:51 Player: Gilgameshx13 Result: Self-destructed Performance ------------- Evolutions (1) 500 Regions Visited (3) 600 Robots Destroyed (15) 75 Value Destroyed (244) 244 Prototype IDs (0) 0 Alien Tech Used (0) 0 Bonus (0) 0 TOTAL SCORE: 1419 Bonus ------- None Cogmind --------- Core Integrity 122/400 Matter 254/300 Energy 10/100 System Corruption 0% Temperature Cool (12) Movement Rolling (90) Location -9/Materials Parts ------- > --- POWER (1) -------- (None) > --- PROPULSION (2) --- Armored Wheel > --- UTILITY (4) ------ Small Storage Unit > --- WEAPON (2) ------- Electrolaser > --- INVENTORY (6) ---- Ion Engine Aluminum Leg Armored Wheel Light Assault Rifle Peak State ------------ > --- POWER ------------ (None) > --- PROPULSION ------- Armored Wheel Armored Wheel > --- UTILITY ---------- Small Storage Unit > --- WEAPON ----------- Electrolaser Electrolaser > --- INVENTORY -------- Ion Engine Aluminum Leg Armored Wheel Light Assault Rifle [Rating: 11] Favorites ----------- Power Ion Engine Engine Ion Engine Propulsion Compact Wheel Wheel Compact Wheel Utility Small Storage Unit Storage Small Storage Unit Weapon Assault Rifle Energy Gun Medium Laser Ballistic Gun Assault Rifle Launcher Rocket Launcher Build | -11 -10 -10 -9 ------- Run | Scr Mat Min Mat Slots Evolved 2 | . . . 2 Power . | . . . . Propulsion . | . . . . Utility 2 | . . . 2 Weapon . | . . . . Parts Attached 16 | 6 . . 10 Power 1 | 1 . . . Engine 1 | 1 . . . Core . | . . . . Reactor . | . . . . Propulsion 5 | 2 . . 3 Treads . | . . . . Leg . | . . . . Wheel 5 | 2 . . 3 Hover . | . . . . Flight . | . . . . Utility 1 | 1 . . . Device . | . . . . Storage 1 | 1 . . . Processor . | . . . . Hackware . | . . . . Protection . | . . . . Artifact . | . . . . Weapon 9 | 2 . . 7 Energy Gun 6 | 1 . . 5 Energy Cannon . | . . . . Ballistic Gun 2 | 1 . . 1 Ballistic Cannon . | . . . . Launcher 1 | . . . 1 Special Weapon . | . . . . Impact Weapon . | . . . . Slashing Weapon . | . . . . Piercing Weapon . | . . . . Special Melee Weapon . | . . . . Unidentified Prototypes . | . . . . Parts Lost 10 | . . . 10 Power 1 | . . . 1 Propulsion 2 | . . . 2 Utility . | . . . . Weapon 7 | . . . 7 Highest Loss Streak 5 | . . . 5 Average Slot Usage (%) 67 | . 85 85 55 Engine 9 | . 14 14 5 Wheel 24 | . 28 28 21 Storage 12 | . 14 14 11 Energy Gun 10 | . 14 14 8 Ballistic Gun 9 | . 14 14 5 Launcher 1 | . . . 2 Naked Turns . | . . . . Heaviest Build 15 | 13 13 13 15 Greatest Support 32 | 32 32 32 32 Greatest Overweight (x) . | . . . . Average Overweight (x) . | . . . . Largest Inventory Capacity 6 | 6 6 6 6 Average Capacity 5 | 4 6 6 6 Most Carried 6 | 4 4 5 6 Average Carried 4 | 2 4 4 5 Final Capacity 6 | 6 6 6 6 Final Carried 5 | 4 4 5 4 Class Distribution -------------------- 100% | Mutant Dominant Class ---------------- Mutant | -10/Materials Mutant | -10/Mines Mutant | -9/Materials Resources | -11 -10 -10 -9 ----------- Run | Scr Mat Min Mat Matter Collected 391 | 202 31 . 158 Remotely . | . . . . Salvage Created 313 | . 31 . 282 Parts 26 | . 3 . 23 Haulers Intercepted 1 | . . . 1 Recyclers Shooed 1 | . . . 1 Parts Field Recycled . | . . . . Retrieved Matter . | . . . . Parts Self-Destructed . | . . . . Prevented . | . . . . Kills | -11 -10 -10 -9 ------- Run | Scr Mat Min Mat Combat Hostiles Destroyed 12 | . 1 . 11 Guns 7 | . 1 . 6 AOE 5 | . . . 5 Classes Destroyed 4 | . 1 . 3 Worker 2 | . . . 2 Hauler 1 | . . . 1 Swarmer 7 | . . . 7 Grunt 5 | . 1 . 4 Best Kill Streak 7 | . 1 . 7 Combat Bots Only 6 | . 1 . 6 Max Kills in Single Turn 3 | . 1 . 3 Gunslinging . | . . . . Exploded 2 | . . . 2 Melee . | . . . . Uniques/NPCs Destroyed . | . . . . Combat | -11 -10 -10 -9 -------- Run | Scr Mat Min Mat Damage Taken 1187 | . 22 . 1165 Core 278 | . . . 278 Absorbed by Shields . | . . . . Core Remaining (%) 100 | 100 . 100 . Volleys Fired 37 | . 3 . 34 Largest 2 | . 2 . 2 Hottest 126 | . 70 . 126 Shots Fired 63 | . 6 . 57 Gun 58 | . 6 . 52 Cannon . | . . . . Launcher 5 | . . . 5 Special . | . . . . Kinetic 27 | . 3 . 24 Thermal 31 | . 3 . 28 Explosive 5 | . . . 5 Electromagnetic . | . . . . Robot Hit Streak 6 | . 2 . 6 Robot Miss Streak 8 | . 3 . 8 Penetration Max . | . . . . Secondary Targets 2 | . . . 2 Max Gunslinging Chain 1 | . . . 1 Shots Hit Robots 28 | . 2 . 26 Core Hits 21 | . 2 . 19 Critical Hits . | . . . . Critical Kills . | . . . . Critical Parts Destroyed . | . . . . Melee Attacks . | . . . . Impact . | . . . . Slashing . | . . . . Piercing . | . . . . Sneak Attacks . | . . . . Combat Hostiles . | . . . . Follow-up Attacks . | . . . . Damage Inflicted 801 | . 39 . 762 Guns 315 | . 39 . 276 Cannons . | . . . . Explosions 473 | . . . 473 Melee . | . . . . Ramming 13 | . . . 13 Kinetic 164 | . 14 . 150 Thermal 151 | . 25 . 126 Explosive 473 | . . . 473 Electromagnetic . | . . . . Impact . | . . . . Slashing . | . . . . Piercing . | . . . . Highest Corruption . | . . . . Average Corruption . | . . . . Corruption Purged . | . . . . Overload Shots . | . . . . Overflow Damage . | . . . . Projectiles . | . . . . Explosions . | . . . . Melee . | . . . . Knockbacks . | . . . . Impact . | . . . . Kinetic . | . . . . Secondary . | . . . . Self-Inflicted Damage 54 | . . . 54 Shots 2 | . . . 2 Rammed 3 | . . . 3 Targets Rammed 3 | . . . 3 Kicked . | . . . . Crushed . | . . . . Highest Temperature 130 | . 30 . 130 Average Temperature 26 | . 13 . 28 Received Heat Transfer 144 | . 12 . 132 Siege Activations . | . . . . Robots Corrupted . | . . . . Combat Hostiles . | . . . . Parts Fried . | . . . . Impact Corruptions . | . . . . Robots Melted . | . . . . Combat Hostiles . | . . . . Parts Melted . | . . . . Heat Transferred 372 | . 74 . 298 Parts Sabotaged . | . . . . Parts Stolen . | . . . . Parts Stripped . | . . . . Power Chain Reactions . | . . . . Missiles Intercepted . | . . . . Alert | -11 -10 -10 -9 ------- Run | Scr Mat Min Mat Peak Influence 273 | . 60 31 273 Initial 23 | . . 23 11 Average 101 | . 28 24 169 Maximum Alert Level 1 | . . . 1 Low Security (%) 74 | 100 100 100 54 Level 1 25 | . . . 45 Level 2 . | . . . . Level 3 . | . . . . Level 4 . | . . . . Level 5 . | . . . . High Security . | . . . . Max Security . | . . . . Squads Dispatched 4 | . 1 . 3 Investigation . | . . . . Extermination . | . . . . Reinforcement 4 | . 1 . 3 Assault . | . . . . Garrison . | . . . . Intercept . | . . . . Construction Impeded . | . . . . Haulers Reinforced . | . . . . Stealth | -11 -10 -10 -9 --------- Run | Scr Mat Min Mat Distress Signals 2 | . . . 2 Communications Jammed . | . . . . Distress Signals . | . . . . Times Spotted 29 | . 3 2 24 Peak Tracking Total 8 | . 1 . 8 Tactical Retreats 1 | . . . 1 Traps | -11 -10 -10 -9 ------- Run | Scr Mat Min Mat Traps Triggered . | . . . . Indirectly . | . . . . Trap Hack Attempts . | . . . . Triggered . | . . . . Disarmed . | . . . . Reprogrammed . | . . . . Reused . | . . . . Traps Extracted . | . . . . Installed . | . . . . Triggered . | . . . . Machines | -11 -10 -10 -9 ---------- Run | Scr Mat Min Mat Machines Disabled . | . . . . Max in Single Turn . | . . . . Machines Sabotaged . | . . . . Garrisons Compromised . | . . . . Overloaded Fab Kills . | . . . . Fab Network Shutdowns . | . . . . Hacking | -11 -10 -10 -9 --------- Run | Scr Mat Min Mat Machines Accessed 1 | . . 1 . Terminals 1 | . . 1 . Fabricators . | . . . . Repair Stations . | . . . . Recycling Units . | . . . . Scanalyzers . | . . . . Garrison Access . | . . . . Total Hacks 2 | . . 2 . Successful 1 | . . 1 . Failed 1 | . . 1 . Catastrophic 1 | . . 1 . Database Lockouts . | . . . . Manual 2 | . . 2 . Terminals 2 | . . 2 . Fabricators . | . . . . Repair Stations . | . . . . Recycling Units . | . . . . Scanalyzers . | . . . . Garrison Access . | . . . . Terminal Hacks 1 | . . 1 . Branch Access Points 1 | . . 1 . Fabricator Hacks . | . . . . Repair Station Hacks . | . . . . Recycling Unit Hacks . | . . . . Scanalyzer . | . . . . Garrison Access Hacks . | . . . . Unauthorized Hacks . | . . . . Terminals . | . . . . Fabricators . | . . . . Repair Stations . | . . . . Recycling Units . | . . . . Scanalyzers . | . . . . Garrison Access . | . . . . Data Cores Recovered . | . . . . Used . | . . . . Hacking Detections 1 | . . 1 . Full Trace Events . | . . . . Feedback Events . | . . . . Feedback Blocked . | . . . . Robot Schematics Acquired . | . . . . Robots Built . | . . . . Matter . | . . . . Time . | . . . . Total Robot Build Rating . | . . . . Part Schematics Acquired . | . . . . Parts Built . | . . . . Matter . | . . . . Time . | . . . . Total Part Build Rating . | . . . . Parts Repaired . | . . . . Time . | . . . . Parts Recycled . | . . . . Recycled Matter . | . . . . Retrieved Matter . | . . . . Retrieved Components . | . . . . Parts Scanalyzed . | . . . . Part Schematics Acquired . | . . . . Parts Damaged . | . . . . Bothacking | -11 -10 -10 -9 ------------ Run | Scr Mat Min Mat Used RIF Installer . | . . . . Robots Hacked . | . . . . Non-combat . | . . . . Combat . | . . . . Robot Hacks Applied . | . . . . Relay Couplers Released . | . . . . Robots Rewired . | . . . . Allies Hacked . | . . . . Hacks Repelled . | . . . . Allies | -11 -10 -10 -9 -------- Run | Scr Mat Min Mat Total Allies . | . . . . Largest Group . | . . . . Highest-Rated Group . | . . . . Highest-Rated Ally . | . . . . Total Orders . | . . . . Ally Attacks . | . . . . Total Damage . | . . . . Kills . | . . . . Allies Corrupted . | . . . . Allies Melted . | . . . . Intel | -11 -10 -10 -9 ------- Run | Scr Mat Min Mat Robot Analysis Total . | . . . . Derelict Logs Recovered . | . . . . Drone Launches . | . . . . Drone Recoveries . | . . . . Exploration | -11 -10 -10 -9 ------------- Run | Scr Mat Min Mat Turns Passed 570 | 50 67 142 311 Spaces Moved 445 | 39 59 141 206 Core 10 | 10 . . . Treads . | . . . . Legs . | . . . . Wheels 435 | 29 59 141 206 Hover . | . . . . Flight . | . . . . Fastest Speed 50 | 50 100 100 90 Average Speed 95 | 87 100 100 93 Slowest Speed 100 | 100 100 100 100 Overloaded Moves . | . . . . Propulsion Burnouts . | . . . . Robots Hopped . | . . . . Cave-ins Triggered . | . . . . Exploration Rate (%) 21 | 4 20 34 26 Regions Visited 3 Branch Regions 1 Pre-discovered Areas . | . . . . Known Exits Taken . | . . . . Unknown Exits Taken 3 | 1 1 1 . Scrap Searched . | . . . . Spaces Dug . | . . . . Terrain Destroyed 47 | . . . 47 Melee . | . . . . Projectile . | . . . . AOE 47 | . . . 47 Terrain Rammed . | . . . . Walls Destroyed . | . . . . Machines Disabled . | . . . . Actions | -11 -10 -10 -9 --------- Run | Scr Mat Min Mat Total 527 | 55 61 142 269 Wait 4 | 1 . 1 2 Move 442 | 38 58 140 206 Hop . | . . . . Pick Up 21 | 10 . 1 10 Fast Attach . | . . . . Attach 14 | 6 . . 8 Detach . | . . . . Swap 2 | . . . 2 Drop 4 | . . . 4 Fire 37 | . 3 . 34 Melee . | . . . . Ram 3 | . . . 3 Kick . | . . . . Crush . | . . . . Escape Stasis . | . . . . Rewire . | . . . . Trap . | . . . . Miscellaneous . | . . . . Route ------- -11/Scrapyard -10/Materials -10/Mines -9/Materials History --------- Turn | Location | Event 15 | -11/Scrapyard | Discovered new exit (range 15) 51 | -11/Scrapyard | Entered Materials 110 | -10/Materials | Discovered new exit (range 9) 118 | -10/Materials | Entered Mines 119 | -10/Mines | Assembled infested the area 124 | -10/Mines | Assisted by a Guerilla fighting off Assembled 201 | -10/Mines | Received a Rocket Launcher from a helpful Derelict 254 | -10/Mines | Discovered new exit (range 5) 260 | -10/Mines | Entered Materials 260 | -9/Materials | Evolved 2 slots: Utility x2 322 | -9/Materials | Build established: Mutant 451 | -9/Materials | Lost 3 parts (1p2w) 537 | -9/Materials | Core integrity fell below 50% 571 | -9/Materials | Self-destructed Last Messages --------------- Slammed into S-10 Pest. Assault Rifle destroyed. Slammed into W-16 Scout. Slammed into S-10 Pest. U-05 Engineer lays Concrete. Arm. Wheel destroyed. Dropped Lgt. Assault Rifle. Acquired Electrolaser. S-10 Pest destroyed. Electrolaser destroyed. K-01 Serf collects debris. Electrolaser destroyed. ALERT: Hostiles spotted, dispatching reinforcements to Terminal M010. Acquired Electrolaser. K-01 Serf collects debris. Arm. Wheel destroyed. R-06 Scavenger collects Lgt. Ion Engine. Acquired Electrolaser. Electrolaser destroyed. K-01 Serf collects debris. Map ----- +----------------------------------------------------+ | ###/#######??????????????????????????????????? | | ##?# #?????????????????????????????????????? | | #??# #?????????????????????????????????????? | | #??# #?????????????????????????????????????? | | #??# #?????????????????????????????????????? | | #### #?????????????????????????????????????? | | / "" #?????????????????????????????????????? | | #### T" #?????????????????????????????????????? | | #??# "" #?????????????????????????????????????? | | #??# #?????????????????????????????????????? | | #??##+###?????????????????????????????????????? | | #???# #???????????????????????????????????????? | | #???? #???????????????????????????????????????? | | #???# #???????????????????????????????????????? | | #???# #???????????????????????????????????????? | | #???# ???????????????????????????????????????? | | #???# #??########?????????????????????????????? | | #???# #??# ##+#??????????????????????????? | | #???# #??# [[[ ## #??????????????????????????? | | #???# #??# [[[ ## #??????????????????????????? | | ##### #### [[[ ## #??????????????????????????? | | + ## #??????????????????????????? | | #+########### ## #####??????????????????????? | | ???# ##+######k !!#??????????????????????? | | ???# gr s !!#??????????????????????? | | Y??# T g Y= [ @#??????????????????????? | | "??# s #??????????????????????? | | ?# ########### ==#??????????????????????? | | """" ?## #??????????# ==#??????????????????????? | | """" ?# ???????????#####??????????????????????? | | """" ?# ???????????????????????????????????????? | | ? ?# ????????????????????????????????????????? | | ?????#?# ????????????????????????????????????????? | | ??????? ?????????????????????????????????????????? | | ?????? ??????????????????????????????????????????? | | ????? ???????????????????????????????????????????? | | ?????????????????????????????????????????????????? | | ?????????????????????????????????????????????????? | | ?????????????????????????????????????????????????? | | ?????????????????????????????????????????????????? | | ?????????????????????????????????????????????????? | | ?????????????????????????????????????????????????? | | ?????????????????????????????????????????????????? | | ?????????????????????????????????????????????????? | | ?????????????????????????????????????????????????? | | ?????????????????????????????????????????????????? | | ?????????????????????????????????????????????????? | | ?????????????????????????????????????????????????? | | ?????????????????????????????????????????????????? | | ?????????????????????????????????????????????????? | +----------------------------------------------------+ Best States ------------- Heat Dissipation 28 Energy Generation 10 Energy Capacity 250 Matter Stores 281 Matter Capacity 300 Sight Range 16 Terrain Scan Density 10 Evasion (%) 50 Item Schematics ----------------- None Robot Schematics ------------------ None Fabricated ------------ Nothing Alien Tech Used ----------------- None Achievements -------------- None Challenges ------------ None Game ------ Seed HelicalCryofiberMembrane Manual? 0 Play Time 00:08:03 Cumulative 20.8 hours Start 2021.08.16 @ 22:55:06 End 2021.08.16 @ 23:02:51 Sessions 1 Manual Loads 0 Difficulty Rogue Special Mode None Game No. 56 Rogue 36 Adventurer 20 Explorer 0 Win Type - Total 1 Types 1/0/0/0/0/0/0/0/0 Lore% 18 Gallery% 42 Achievement% 30 Wizard Run 0 Options --------- ASCII 0 Keyboard 0 Movement Numpad Keybinds 0 Fullscreen 1 Font 18/SmallcapsGlow Map View 76x50 Tactical HUD 0 Map Filters NONE Filters NONE Steam 1 RUN: 768a8c21-ce01-4d01-93d3-8dcc439a9a17